[Event "Titled Tuesday Blitz June 15 2021"]
[White "Levine, Joseph"]
[Black "Savitski, Andrei"]
[WhiteFideId "30940346"]
[BlackFideId "13506161"]
[WhiteElo "1785"]
[BlackElo "2121"]
[Result "0-1"]
[Round "05"]
[TimeControl "180+1"]
[Date "2021.06.15"]
[WhiteClock "0:00:08"]
[BlackClock "0:00:09"]

1. e4 {[%clk 0:03:00]}  c5 {[%clk 0:02:25]} 2. Nf3 {[%clk 0:02:58]}  d6 {[%clk 0:02:24]} 3. d4 {[%clk 0:02:57]}  cxd4 {[%clk 0:02:25]} 4. Nxd4 {[%clk 0:02:58]}  Nf6 {[%clk 0:02:26]} 5. Nc3 {[%clk 0:02:58]}  Nc6 {[%clk 0:02:26]} 6. Bc4 {[%clk 0:02:58]}  e6 {[%clk 0:02:23]} 7. O-O {[%clk 0:02:57]}  a6 {[%clk 0:02:23]} 8. Be3 {[%clk 0:02:56]}  Qc7 {[%clk 0:02:22]} 9. Bb3 {[%clk 0:02:56]}  Na5 {[%clk 0:02:23]} 10. h3 {[%clk 0:02:54]}  Be7 {[%clk 0:02:15]} 11. Qd3 {[%clk 0:02:50]}  O-O {[%clk 0:01:29]} 12. f4 {[%clk 0:02:47]}  b5 {[%clk 0:01:27]} 13. f5 {[%clk 0:02:43]}  e5 {[%clk 0:01:23]} 14. Nde2 {[%clk 0:02:39]}  Nxb3 {[%clk 0:01:23]} 15. axb3 {[%clk 0:02:38]}  Bb7 {[%clk 0:01:24]} 16. b4 {[%clk 0:02:37]}  h6 {[%clk 0:01:13]} 17. Nd5 {[%clk 0:02:35]}  Nxd5 {[%clk 0:01:07]} 18. exd5 {[%clk 0:02:36]}  Rac8 {[%clk 0:01:05]} 19. Nc3 {[%clk 0:02:36]}  Qc4 {[%clk 0:01:05]} 20. Qd2 {[%clk 0:02:12]}  Bf6 {[%clk 0:00:45]} 21. Rf3 {[%clk 0:01:49]}  Rfe8 {[%clk 0:00:38]} 22. Bxh6 {[%clk 0:01:43]}  Qd4+ {[%clk 0:00:33]} 23. Be3 {[%clk 0:01:36]}  Qxd2 {[%clk 0:00:34]} 24. Bxd2 {[%clk 0:01:37]}  e4 {[%clk 0:00:34]} 25. Re3 {[%clk 0:01:36]}  Bd4 {[%clk 0:00:34]} 26. Kf1 {[%clk 0:01:23]}  Bxe3 {[%clk 0:00:34]} 27. Bxe3 {[%clk 0:01:24]}  Rc4 {[%clk 0:00:35]} 28. Ke2 {[%clk 0:01:17]}  Re5 {[%clk 0:00:16]} 29. g4 {[%clk 0:01:16]}  Re8 {[%clk 0:00:12]} 30. Kd2 {[%clk 0:01:14]}  g6 {[%clk 0:00:09]} 31. fxg6 {[%clk 0:01:12]}  fxg6 {[%clk 0:00:10]} 32. b3 {[%clk 0:01:03]}  Rcc8 {[%clk 0:00:09]} 33. Rf1 {[%clk 0:01:02]}  Rf8 {[%clk 0:00:09]} 34. Rxf8+ {[%clk 0:01:02]}  Rxf8 {[%clk 0:00:10]} 35. Ke2 {[%clk 0:01:02]}  Kf7 {[%clk 0:00:10]} 36. Nxe4 {[%clk 0:00:56]}  Bxd5 {[%clk 0:00:09]} 37. Nxd6+ {[%clk 0:00:56]}  Ke6 {[%clk 0:00:10]} 38. Bc5 {[%clk 0:00:55]}  Rh8 {[%clk 0:00:10]} 39. c4 {[%clk 0:00:51]}  Bc6 {[%clk 0:00:10]} 40. cxb5 {[%clk 0:00:28]}  axb5 {[%clk 0:00:10]} 41. Ke3 {[%clk 0:00:29]}  Rd8 {[%clk 0:00:10]} 42. Ne4 {[%clk 0:00:27]}  Bxe4 {[%clk 0:00:09]} 43. Kxe4 {[%clk 0:00:28]}  Rh8 {[%clk 0:00:10]} 44. Kf4 {[%clk 0:00:27]}  Rxh3 {[%clk 0:00:10]} 45. Kg5 {[%clk 0:00:27]}  Kf7 {[%clk 0:00:10]} 46. Bd6 {[%clk 0:00:26]}  Rxb3 {[%clk 0:00:10]} 47. Bc5 {[%clk 0:00:27]}  Rd3 {[%clk 0:00:10]} 48. Bf2 {[%clk 0:00:25]}  Rd5+ {[%clk 0:00:10]} 49. Kf4 {[%clk 0:00:24]}  Ke6 {[%clk 0:00:11]} 50. Ke4 {[%clk 0:00:22]}  Re5+ {[%clk 0:00:11]} 51. Kf4 {[%clk 0:00:21]}  Re2 {[%clk 0:00:10]} 52. Bc5 {[%clk 0:00:21]}  Re5 {[%clk 0:00:10]} 53. Bd4 {[%clk 0:00:20]}  g5+ {[%clk 0:00:10]} 54. Kf3 {[%clk 0:00:19]}  Re1 {[%clk 0:00:10]} 55. Bc5 {[%clk 0:00:19]}  Rc1 {[%clk 0:00:06]} 56. Be3 {[%clk 0:00:17]}  Rc3 {[%clk 0:00:05]} 57. Ke4 {[%clk 0:00:16]}  Rc4+ {[%clk 0:00:06]} 58. Kf3 {[%clk 0:00:15]}  Kf6 {[%clk 0:00:03]} 59. Bc5 {[%clk 0:00:15]}  Rc3+ {[%clk 0:00:03]} 60. Ke4 {[%clk 0:00:14]}  Rc4+ {[%clk 0:00:03]} 61. Kf3 {[%clk 0:00:13]}  Ke5 {[%clk 0:00:04]} 62. Be7 {[%clk 0:00:12]}  Rc3+ {[%clk 0:00:05]} 63. Ke2 {[%clk 0:00:12]}  Kf4 {[%clk 0:00:05]} 64. Kd2 {[%clk 0:00:07]}  Rc4 {[%clk 0:00:05]} 65. Kd3 {[%clk 0:00:06]}  Kxg4 {[%clk 0:00:06]} 66. Bd6 {[%clk 0:00:06]}  Kf5 {[%clk 0:00:06]} 67. Ke3 {[%clk 0:00:06]}  Kg4 {[%clk 0:00:06]} 68. Kf2 {[%clk 0:00:06]}  Kf5 {[%clk 0:00:06]} 69. Ke3 {[%clk 0:00:07]}  g4 {[%clk 0:00:07]} 70. Kf2 {[%clk 0:00:07]}  Ke4 {[%clk 0:00:08]} 71. Ke2 {[%clk 0:00:07]}  Kd4 {[%clk 0:00:08]} 72. Kf2 {[%clk 0:00:07]}  Kc3 {[%clk 0:00:08]} 73. Kg3 {[%clk 0:00:08]}  Rxb4 {[%clk 0:00:09]} 0-1


[Site "https://www.chess.com"]

[Event "Titled Tuesday Blitz June 15 2021"]
[White "Libiszewski, Fabien"]
[Black "Viana Da Costa, Fernando"]
[WhiteFideId "616834"]
[BlackFideId "2111900"]
[WhiteElo "2440"]
[BlackElo "2247"]
[Result "1-0"]
[Round "05"]
[TimeControl "180+1"]
[Date "2021.06.15"]
[WhiteClock "0:00:12"]
[BlackClock "0:00:03"]

1. e4 {[%clk 0:03:00]}  c5 {[%clk 0:02:59]} 2. d3 {[%clk 0:02:59]}  Nc6 {[%clk 0:02:59]} 3. g3 {[%clk 0:02:59]}  g6 {[%clk 0:02:59]} 4. Bg2 {[%clk 0:03:00]}  Bg7 {[%clk 0:02:59]} 5. f4 {[%clk 0:03:01]}  d6 {[%clk 0:03:00]} 6. Nf3 {[%clk 0:03:02]}  Nf6 {[%clk 0:03:00]} 7. O-O {[%clk 0:03:01]}  O-O {[%clk 0:03:00]} 8. c3 {[%clk 0:03:01]}  c4 {[%clk 0:02:59]} 9. Kh1 {[%clk 0:02:52]}  cxd3 {[%clk 0:02:58]} 10. Qxd3 {[%clk 0:02:53]}  Nd7 {[%clk 0:02:54]} 11. Be3 {[%clk 0:02:49]}  Nc5 {[%clk 0:02:54]} 12. Qc2 {[%clk 0:02:49]}  Qc7 {[%clk 0:02:48]} 13. Nbd2 {[%clk 0:02:45]}  b5 {[%clk 0:02:45]} 14. Nd4 {[%clk 0:02:33]}  Rb8 {[%clk 0:02:42]} 15. Nxc6 {[%clk 0:02:27]}  Qxc6 {[%clk 0:02:41]} 16. e5 {[%clk 0:02:27]}  Qc7 {[%clk 0:02:40]} 17. exd6 {[%clk 0:02:27]}  Qxd6 {[%clk 0:02:36]} 18. Rad1 {[%clk 0:02:23]}  Qc7 {[%clk 0:02:32]} 19. Nf3 {[%clk 0:02:07]}  Bf5 {[%clk 0:02:28]} 20. Qe2 {[%clk 0:02:00]}  Rfd8 {[%clk 0:02:15]} 21. Nd4 {[%clk 0:01:59]}  Bd7 {[%clk 0:02:05]} 22. f5 {[%clk 0:01:46]}  b4 {[%clk 0:01:54]} 23. fxg6 {[%clk 0:01:45]}  hxg6 {[%clk 0:01:55]} 24. Qf2 {[%clk 0:01:40]}  Rf8 {[%clk 0:01:49]} 25. cxb4 {[%clk 0:01:29]}  Rxb4 {[%clk 0:01:15]} 26. Nc2 {[%clk 0:01:18]}  Rxb2 {[%clk 0:01:09]} 27. Bxc5 {[%clk 0:01:13]}  Bf5 {[%clk 0:01:09]} 28. Rd2 {[%clk 0:01:02]}  Rc8 {[%clk 0:01:08]} 29. g4 {[%clk 0:00:29]}  Rxc2 {[%clk 0:00:22]} 30. Rxc2 {[%clk 0:00:25]}  Bxc2 {[%clk 0:00:20]} 31. Qxf7+ {[%clk 0:00:25]}  Kh8 {[%clk 0:00:17]} 32. Bxe7 {[%clk 0:00:20]}  Bd3 {[%clk 0:00:10]} 33. Re1 {[%clk 0:00:15]}  Qc3 {[%clk 0:00:04]} 34. Qf2 {[%clk 0:00:13]}  Re8 {[%clk 0:00:03]} 35. Qh4+ {[%clk 0:00:12]} 1-0


[Site "https://www.chess.com"]

[Event "Titled Tuesday Blitz June 15 2021"]
[White "Liyanage, Ranindu Dilshan"]
[Black "Stepanencu, Nicodim-Cosmin"]
[WhiteFideId "9915834"]
[BlackFideId "1256220"]
[WhiteElo "1839"]
[BlackElo "1704"]
[Result "0-1"]
[Round "05"]
[TimeControl "180+1"]
[Date "2021.06.15"]
[WhiteClock "0:00:02"]
[BlackClock "0:00:14"]

1. e4 {[%clk 0:03:00]}  c6 {[%clk 0:02:58]} 2. d4 {[%clk 0:03:00]}  d5 {[%clk 0:02:59]} 3. e5 {[%clk 0:03:00]}  Bf5 {[%clk 0:02:57]} 4. Nf3 {[%clk 0:03:01]}  e6 {[%clk 0:02:57]} 5. Be2 {[%clk 0:03:02]}  c5 {[%clk 0:02:58]} 6. Be3 {[%clk 0:03:00]}  Nc6 {[%clk 0:02:58]} 7. Nc3 {[%clk 0:02:59]}  Qb6 {[%clk 0:02:58]} 8. O-O {[%clk 0:02:58]}  Qxb2 {[%clk 0:02:50]} 9. Qe1 {[%clk 0:02:58]}  cxd4 {[%clk 0:02:37]} 10. Bxd4 {[%clk 0:02:58]}  Bb4 {[%clk 0:02:35]} 11. Rb1 {[%clk 0:01:45]}  Qxc2 {[%clk 0:02:33]} 12. Rxb4 {[%clk 0:01:30]}  Nxb4 {[%clk 0:02:34]} 13. Nb5 {[%clk 0:01:30]}  Nc6 {[%clk 0:01:36]} 14. Nd6+ {[%clk 0:01:02]}  Kf8 {[%clk 0:01:25]} 15. Bb5 {[%clk 0:00:43]}  Bd3 {[%clk 0:01:19]} 16. Bxd3 {[%clk 0:00:37]}  Qxd3 {[%clk 0:01:20]} 17. Bc5 {[%clk 0:00:37]}  Nge7 {[%clk 0:01:17]} 18. Ng5 {[%clk 0:00:34]}  b6 {[%clk 0:01:11]} 19. Ndxf7 {[%clk 0:00:26]}  bxc5 {[%clk 0:01:02]} 20. Nxh8 {[%clk 0:00:26]}  Qf5 {[%clk 0:00:50]} 21. f4 {[%clk 0:00:15]}  h6 {[%clk 0:00:44]} 22. Ngf7 {[%clk 0:00:15]}  Nd4 {[%clk 0:00:24]} 23. Nd6 {[%clk 0:00:13]}  Qc2 {[%clk 0:00:20]} 24. Nhf7 {[%clk 0:00:11]}  Nef5 {[%clk 0:00:18]} 25. Qa5 {[%clk 0:00:07]}  Ne3 {[%clk 0:00:15]} 26. Rf2 {[%clk 0:00:02]}  Qd1+ {[%clk 0:00:14]} 0-1


[Site "https://www.chess.com"]

[Event "Titled Tuesday Blitz June 15 2021"]
[White "Maze, Sebastien"]
[Black "Rottenwohrer Suarez, Juan"]
[WhiteFideId "613762"]
[BlackFideId "32068182"]
[WhiteElo "2462"]
[BlackElo "2188"]
[Result "1-0"]
[Round "05"]
[TimeControl "180+1"]
[Date "2021.06.15"]
[WhiteClock "0:00:53"]
[BlackClock "0:00:02"]

1. e4 {[%clk 0:03:00]}  c6 {[%clk 0:02:59]} 2. d4 {[%clk 0:02:58]}  d5 {[%clk 0:02:58]} 3. e5 {[%clk 0:02:58]}  Bf5 {[%clk 0:02:55]} 4. Nf3 {[%clk 0:02:57]}  e6 {[%clk 0:02:52]} 5. Be2 {[%clk 0:02:56]}  c5 {[%clk 0:02:51]} 6. O-O {[%clk 0:02:54]}  Nc6 {[%clk 0:02:50]} 7. Be3 {[%clk 0:02:54]}  cxd4 {[%clk 0:02:42]} 8. Nxd4 {[%clk 0:02:53]}  Nxd4 {[%clk 0:02:42]} 9. Bxd4 {[%clk 0:02:51]}  Ne7 {[%clk 0:02:43]} 10. c3 {[%clk 0:02:48]}  Nc6 {[%clk 0:02:42]} 11. Bd3 {[%clk 0:02:39]}  Bxd3 {[%clk 0:02:37]} 12. Qxd3 {[%clk 0:02:39]}  Be7 {[%clk 0:02:35]} 13. Re1 {[%clk 0:02:38]}  Rc8 {[%clk 0:02:27]} 14. Nd2 {[%clk 0:02:37]}  O-O {[%clk 0:02:11]} 15. g3 {[%clk 0:02:36]}  Qa5 {[%clk 0:01:55]} 16. Kg2 {[%clk 0:02:33]}  Qa6 {[%clk 0:01:46]} 17. Qxa6 {[%clk 0:02:30]}  bxa6 {[%clk 0:01:47]} 18. Nf3 {[%clk 0:02:17]}  a5 {[%clk 0:01:46]} 19. Rab1 {[%clk 0:02:10]}  Rb8 {[%clk 0:01:45]} 20. b3 {[%clk 0:02:05]}  Rb7 {[%clk 0:01:44]} 21. Rec1 {[%clk 0:02:05]}  Rfb8 {[%clk 0:01:41]} 22. Kf1 {[%clk 0:01:55]}  g5 {[%clk 0:01:41]} 23. h3 {[%clk 0:01:55]}  h5 {[%clk 0:01:40]} 24. g4 {[%clk 0:01:54]}  hxg4 {[%clk 0:01:37]} 25. hxg4 {[%clk 0:01:55]}  Kg7 {[%clk 0:01:37]} 26. Ke2 {[%clk 0:01:55]}  Kg6 {[%clk 0:01:37]} 27. Kd3 {[%clk 0:01:53]}  a4 {[%clk 0:01:34]} 28. b4 {[%clk 0:01:52]}  a5 {[%clk 0:01:12]} 29. a3 {[%clk 0:01:51]}  Na7 {[%clk 0:01:07]} 30. Bxa7 {[%clk 0:01:48]}  Rxa7 {[%clk 0:01:06]} 31. Nd4 {[%clk 0:01:47]}  axb4 {[%clk 0:01:02]} 32. Nc6 {[%clk 0:01:44]}  Rab7 {[%clk 0:00:52]} 33. Nxb8 {[%clk 0:01:42]}  Rxb8 {[%clk 0:00:53]} 34. cxb4 {[%clk 0:01:42]}  f6 {[%clk 0:00:45]} 35. Rc7 {[%clk 0:01:33]}  Re8 {[%clk 0:00:44]} 36. b5 {[%clk 0:01:26]}  fxe5 {[%clk 0:00:43]} 37. b6 {[%clk 0:01:25]}  Bd6 {[%clk 0:00:44]} 38. Rd7 {[%clk 0:01:19]}  e4+ {[%clk 0:00:43]} 39. Ke2 {[%clk 0:01:18]}  Bxa3 {[%clk 0:00:26]} 40. b7 {[%clk 0:01:07]}  Rb8 {[%clk 0:00:27]} 41. Rb5 {[%clk 0:01:06]}  Bc1 {[%clk 0:00:11]} 42. Ra5 {[%clk 0:01:00]}  d4 {[%clk 0:00:06]} 43. Rxa4 {[%clk 0:00:57]}  d3+ {[%clk 0:00:05]} 44. Kf1 {[%clk 0:00:56]}  Bf4 {[%clk 0:00:04]} 45. Ra8 {[%clk 0:00:55]}  Rxb7 {[%clk 0:00:01]} 46. Rxb7 {[%clk 0:00:55]}  d2 {[%clk 0:00:02]} 47. Rd7 {[%clk 0:00:53]} 1-0


[Site "https://www.chess.com"]

[Event "Titled Tuesday Blitz June 15 2021"]
[White "Mikhalsky, Vladimir"]
[Black "Liang, Jason"]
[WhiteFideId "14144352"]
[BlackFideId "30940303"]
[WhiteElo "2280"]
[BlackElo "1976"]
[Result "0-1"]
[Round "05"]
[TimeControl "180+1"]
[Date "2021.06.15"]
[WhiteClock "0:00:01"]
[BlackClock "0:00:06"]

1. d4 {[%clk 0:02:53]}  Nf6 {[%clk 0:02:30]} 2. c4 {[%clk 0:02:52]}  e5 {[%clk 0:02:29]} 3. dxe5 {[%clk 0:02:48]}  Ng4 {[%clk 0:02:29]} 4. Nf3 {[%clk 0:02:42]}  Bc5 {[%clk 0:02:29]} 5. e3 {[%clk 0:02:38]}  Nc6 {[%clk 0:02:29]} 6. Be2 {[%clk 0:02:33]}  O-O {[%clk 0:02:28]} 7. b3 {[%clk 0:02:30]}  Ngxe5 {[%clk 0:02:26]} 8. Bb2 {[%clk 0:02:28]}  Bb4+ {[%clk 0:01:58]} 9. Nbd2 {[%clk 0:02:27]}  Qf6 {[%clk 0:01:51]} 10. Qc2 {[%clk 0:02:21]}  Nxf3+ {[%clk 0:01:48]} 11. Bxf3 {[%clk 0:02:19]}  Ne5 {[%clk 0:01:32]} 12. Be2 {[%clk 0:02:16]}  d6 {[%clk 0:01:24]} 13. f4 {[%clk 0:02:12]}  Qg6 {[%clk 0:00:58]} 14. Qxg6 {[%clk 0:01:57]}  Nxg6 {[%clk 0:00:59]} 15. a3 {[%clk 0:01:44]}  Bc5 {[%clk 0:00:59]} 16. Nf1 {[%clk 0:01:35]}  Re8 {[%clk 0:00:58]} 17. Kd2 {[%clk 0:01:35]}  a5 {[%clk 0:00:56]} 18. h4 {[%clk 0:01:26]}  Ne7 {[%clk 0:00:51]} 19. g4 {[%clk 0:01:22]}  b5 {[%clk 0:00:38]} 20. cxb5 {[%clk 0:01:09]}  Bb7 {[%clk 0:00:38]} 21. Rh3 {[%clk 0:01:08]}  Nd5 {[%clk 0:00:38]} 22. Bf3 {[%clk 0:00:45]}  Rab8 {[%clk 0:00:38]} 23. Re1 {[%clk 0:00:39]}  Ba8 {[%clk 0:00:25]} 24. Bh1 {[%clk 0:00:27]}  Rxb5 {[%clk 0:00:24]} 25. Kc2 {[%clk 0:00:26]}  Reb8 {[%clk 0:00:17]} 26. Nd2 {[%clk 0:00:19]}  Nxe3+ {[%clk 0:00:15]} 27. Rexe3 {[%clk 0:00:17]}  Bxe3 {[%clk 0:00:15]} 28. Bxa8 {[%clk 0:00:17]}  Bxd2 {[%clk 0:00:15]} 29. Kxd2 {[%clk 0:00:14]}  Rxa8 {[%clk 0:00:14]} 30. Kc2 {[%clk 0:00:14]}  Re8 {[%clk 0:00:13]} 31. Rc3 {[%clk 0:00:13]}  c5 {[%clk 0:00:12]} 32. Rd3 {[%clk 0:00:12]}  Re2+ {[%clk 0:00:12]} 33. Kc3 {[%clk 0:00:12]}  a4 {[%clk 0:00:10]} 34. b4 {[%clk 0:00:10]}  cxb4+ {[%clk 0:00:09]} 35. axb4 {[%clk 0:00:10]}  d5 {[%clk 0:00:08]} 36. Ba3 {[%clk 0:00:09]}  f6 {[%clk 0:00:07]} 37. Kd4 {[%clk 0:00:10]}  Kf7 {[%clk 0:00:06]} 38. Rc3 {[%clk 0:00:09]}  Re4+ {[%clk 0:00:06]} 39. Kd3 {[%clk 0:00:09]}  Rxf4 {[%clk 0:00:05]} 40. Rc7+ {[%clk 0:00:09]}  Ke6 {[%clk 0:00:05]} 41. Rxg7 {[%clk 0:00:08]}  h5 {[%clk 0:00:05]} 42. gxh5 {[%clk 0:00:08]}  Rxh4 {[%clk 0:00:06]} 43. Bc1 {[%clk 0:00:07]}  Rxh5 {[%clk 0:00:06]} 44. Rg4 {[%clk 0:00:06]}  Rh3+ {[%clk 0:00:06]} 45. Kd4 {[%clk 0:00:05]}  Rxb4+ {[%clk 0:00:06]} 46. Kc5 {[%clk 0:00:05]}  Rxg4 {[%clk 0:00:07]} 47. Ba3 {[%clk 0:00:04]}  Rc4+ {[%clk 0:00:07]} 48. Kb5 {[%clk 0:00:03]}  Rb3+ {[%clk 0:00:08]} 49. Ka5 {[%clk 0:00:03]}  Kd7 {[%clk 0:00:08]} 50. Bb4 {[%clk 0:00:02]}  Kc6 {[%clk 0:00:08]} 51. Ka6 {[%clk 0:00:01]}  Rbxb4 {[%clk 0:00:08]} 52. Ka7 {[%clk 0:00:01]}  a3 {[%clk 0:00:06]} 0-1


[Site "https://www.chess.com"]

[Event "Titled Tuesday Blitz June 15 2021"]
[White "Niemann, Hans Moke"]
[Black "Ulziikhishigjargal, Ochirkhuyag"]
[WhiteFideId "2093596"]
[BlackFideId "4903188"]
[WhiteElo "2492"]
[BlackElo "1836"]
[Result "1-0"]
[Round "05"]
[TimeControl "180+1"]
[Date "2021.06.15"]
[WhiteClock "0:02:30"]
[BlackClock "0:01:34"]

1. d4 {[%clk 0:03:00]}  Nf6 {[%clk 0:02:58]} 2. Nc3 {[%clk 0:02:58]}  d5 {[%clk 0:02:53]} 3. Bf4 {[%clk 0:02:52]}  e6 {[%clk 0:02:49]} 4. e3 {[%clk 0:02:52]}  a6 {[%clk 0:02:48]} 5. g4 {[%clk 0:02:51]}  Bb4 {[%clk 0:02:46]} 6. Bg2 {[%clk 0:02:49]}  c5 {[%clk 0:02:45]} 7. g5 {[%clk 0:02:49]}  Ne4 {[%clk 0:02:38]} 8. Bxe4 {[%clk 0:02:46]}  dxe4 {[%clk 0:02:38]} 9. Ne2 {[%clk 0:02:47]}  cxd4 {[%clk 0:02:35]} 10. Qxd4 {[%clk 0:02:42]}  Qxd4 {[%clk 0:02:33]} 11. exd4 {[%clk 0:02:43]}  Bd7 {[%clk 0:02:27]} 12. a3 {[%clk 0:02:42]}  Bxc3+ {[%clk 0:02:26]} 13. Nxc3 {[%clk 0:02:43]}  Bc6 {[%clk 0:02:26]} 14. O-O-O {[%clk 0:02:43]}  Nd7 {[%clk 0:02:18]} 15. Rhe1 {[%clk 0:02:41]}  f5 {[%clk 0:02:17]} 16. d5 {[%clk 0:02:39]}  exd5 {[%clk 0:02:17]} 17. Nxd5 {[%clk 0:02:40]}  Bxd5 {[%clk 0:01:59]} 18. Rxd5 {[%clk 0:02:39]}  g6 {[%clk 0:01:59]} 19. Red1 {[%clk 0:02:40]}  O-O-O {[%clk 0:01:57]} 20. R1d4 {[%clk 0:02:30]}  b5 {[%clk 0:01:34]} 21. Rd6 {[%clk 0:02:30]} 1-0


[Site "https://www.chess.com"]

[Event "Titled Tuesday Blitz June 15 2021"]
[White "Ozates, Tuna"]
[Black "Vallejo Diaz, Javier"]
[WhiteFideId "6354521"]
[BlackFideId "2256398"]
[WhiteElo "1872"]
[BlackElo "2680"]
[Result "0-1"]
[Round "05"]
[TimeControl "180+1"]
[Date "2021.06.15"]
[WhiteClock "0:00:15"]
[BlackClock "0:00:21"]

1. e4 {[%clk 0:03:00]}  d5 {[%clk 0:02:59]} 2. exd5 {[%clk 0:03:00]}  Qxd5 {[%clk 0:03:00]} 3. Nc3 {[%clk 0:03:00]}  Qa5 {[%clk 0:03:00]} 4. d4 {[%clk 0:03:01]}  c6 {[%clk 0:03:01]} 5. g3 {[%clk 0:02:59]}  Nf6 {[%clk 0:02:58]} 6. Bg2 {[%clk 0:02:59]}  e5 {[%clk 0:02:58]} 7. dxe5 {[%clk 0:02:58]}  Qxe5+ {[%clk 0:02:58]} 8. Nge2 {[%clk 0:02:58]}  Be7 {[%clk 0:02:51]} 9. Bf4 {[%clk 0:02:57]}  Qa5 {[%clk 0:02:51]} 10. O-O {[%clk 0:02:57]}  O-O {[%clk 0:02:50]} 11. h3 {[%clk 0:02:53]}  Na6 {[%clk 0:02:48]} 12. Nd4 {[%clk 0:02:49]}  Rd8 {[%clk 0:02:45]} 13. Nb3 {[%clk 0:02:48]}  Qb6 {[%clk 0:02:36]} 14. Qe2 {[%clk 0:02:46]}  Be6 {[%clk 0:02:33]} 15. Rfd1 {[%clk 0:02:39]}  Re8 {[%clk 0:02:05]} 16. Qf3 {[%clk 0:02:10]}  Nb4 {[%clk 0:02:00]} 17. Nd4 {[%clk 0:02:05]}  Bd5 {[%clk 0:01:49]} 18. Nxd5 {[%clk 0:02:05]}  Nbxd5 {[%clk 0:01:48]} 19. Nf5 {[%clk 0:02:05]}  Qxb2 {[%clk 0:01:28]} 20. c4 {[%clk 0:01:47]}  Nxf4 {[%clk 0:01:27]} 21. Qxf4 {[%clk 0:01:48]}  Bc5 {[%clk 0:01:12]} 22. Rab1 {[%clk 0:01:46]}  Qxa2 {[%clk 0:01:12]} 23. Rxb7 {[%clk 0:01:45]}  Qc2 {[%clk 0:00:58]} 24. Rc1 {[%clk 0:01:32]}  Qe2 {[%clk 0:00:43]} 25. Bxc6 {[%clk 0:01:27]}  Re6 {[%clk 0:00:34]} 26. Bd5 {[%clk 0:01:21]}  Nxd5 {[%clk 0:00:33]} 27. Nh6+ {[%clk 0:01:20]}  Kh8 {[%clk 0:00:27]} 28. Nxf7+ {[%clk 0:01:20]}  Kg8 {[%clk 0:00:27]} 29. Nh6+ {[%clk 0:01:08]}  Kh8 {[%clk 0:00:26]} 30. Rb8+ {[%clk 0:01:05]}  Rxb8 {[%clk 0:00:24]} 31. Qxb8+ {[%clk 0:01:06]}  Re8 {[%clk 0:00:24]} 32. Qb3 {[%clk 0:00:17]}  Qxf2+ {[%clk 0:00:20]} 33. Kh1 {[%clk 0:00:17]}  Re1+ {[%clk 0:00:19]} 34. Rxe1 {[%clk 0:00:16]}  Qxe1+ {[%clk 0:00:19]} 35. Kg2 {[%clk 0:00:16]}  Qf2+ {[%clk 0:00:20]} 36. Kh1 {[%clk 0:00:15]}  Qg1# {[%clk 0:00:21]} 0-1


[Site "https://www.chess.com"]

[Event "Titled Tuesday Blitz June 15 2021"]
[White "Ozen, Bahadir"]
[Black "Balabayeva, Xeniya"]
[WhiteFideId "6337058"]
[BlackFideId "13719688"]
[WhiteElo "2503"]
[BlackElo "1937"]
[Result "1-0"]
[Round "05"]
[TimeControl "180+1"]
[Date "2021.06.15"]
[WhiteClock "0:00:15"]
[BlackClock "0:00:02"]

1. c4 {[%clk 0:03:00]}  e6 {[%clk 0:02:58]} 2. g3 {[%clk 0:02:59]}  d5 {[%clk 0:02:58]} 3. Bg2 {[%clk 0:03:00]}  Nf6 {[%clk 0:02:56]} 4. d4 {[%clk 0:02:57]}  Be7 {[%clk 0:02:45]} 5. Nf3 {[%clk 0:02:50]}  O-O {[%clk 0:02:43]} 6. O-O {[%clk 0:02:51]}  dxc4 {[%clk 0:02:39]} 7. Qa4 {[%clk 0:02:48]}  c5 {[%clk 0:02:33]} 8. dxc5 {[%clk 0:02:44]}  Bxc5 {[%clk 0:02:31]} 9. Qxc4 {[%clk 0:02:38]}  Be7 {[%clk 0:02:22]} 10. Nc3 {[%clk 0:02:34]}  Nc6 {[%clk 0:02:17]} 11. Rd1 {[%clk 0:02:08]}  Bd7 {[%clk 0:02:13]} 12. Bf4 {[%clk 0:01:48]}  Rc8 {[%clk 0:02:08]} 13. Qd3 {[%clk 0:01:46]}  Qb6 {[%clk 0:01:58]} 14. Qb5 {[%clk 0:01:46]}  Qxb5 {[%clk 0:01:49]} 15. Nxb5 {[%clk 0:01:47]}  Nd5 {[%clk 0:01:48]} 16. Bd6 {[%clk 0:01:39]}  a6 {[%clk 0:01:36]} 17. Bxe7 {[%clk 0:01:39]}  Ncxe7 {[%clk 0:01:31]} 18. Nd6 {[%clk 0:01:38]}  Rc7 {[%clk 0:01:24]} 19. Rac1 {[%clk 0:01:34]}  Bc6 {[%clk 0:01:19]} 20. Ne5 {[%clk 0:01:31]}  f6 {[%clk 0:01:02]} 21. Nxc6 {[%clk 0:01:17]}  Rxc6 {[%clk 0:00:59]} 22. Rxc6 {[%clk 0:01:04]}  bxc6 {[%clk 0:00:53]} 23. e4 {[%clk 0:01:05]}  Nb6 {[%clk 0:00:47]} 24. Bh3 {[%clk 0:00:53]}  Rd8 {[%clk 0:00:35]} 25. Bxe6+ {[%clk 0:00:52]}  Kf8 {[%clk 0:00:35]} 26. Rd2 {[%clk 0:00:53]}  Na4 {[%clk 0:00:20]} 27. Bb3 {[%clk 0:00:34]}  Nxb2 {[%clk 0:00:18]} 28. Rxb2 {[%clk 0:00:34]}  Rxd6 {[%clk 0:00:17]} 29. Bc4 {[%clk 0:00:35]}  Ng6 {[%clk 0:00:10]} 30. Bxa6 {[%clk 0:00:28]}  Ne5 {[%clk 0:00:09]} 31. Be2 {[%clk 0:00:24]}  Ke7 {[%clk 0:00:06]} 32. a4 {[%clk 0:00:23]}  Rd7 {[%clk 0:00:05]} 33. a5 {[%clk 0:00:22]}  c5 {[%clk 0:00:04]} 34. a6 {[%clk 0:00:22]}  c4 {[%clk 0:00:04]} 35. Rc2 {[%clk 0:00:15]}  Rc7 {[%clk 0:00:02]} 36. f4 {[%clk 0:00:15]} 1-0


[Site "https://www.chess.com"]